fUST/lending_fUST_20250720
["ID","MTS","AMOUNT","RATE_DAILY","PERIOD"]
[373476459,1753019461444,-500.0,0.00018865,2]
[373476461,1753019461454,-500.0,0.00018865,2]
[373476463,1753019461464,-312.99209807,0.000189,2]
[373476465,1753019461474,-460.0,0.00018904,2]
[373476467,1753019461486,-460.0,0.00018904,2]
[373476469,1753019461495,-460.0,0.00018904,2]
[373476471,1753019461505,-460.0,0.00018904,2]
[373476473,1753019461516,-460.0,0.00018904,2]
[373476475,1753019461526,-460.0,0.00018904,2]
[373476477,1753019461535,-460.0,0.00018904,2]
[373476480,1753019461545,-464.87267364,0.00018904,2]
[373476482,1753019461554,-460.0,0.00018904,2]
[373476484,1753019461564,-460.0,0.00018904,2]
[373476486,1753019461573,-460.0,0.00018904,2]
[373476488,1753019461583,-460.0,0.00018904,2]
[373476490,1753019461593,-460.0,0.00018904,2]
[373476492,1753019461603,-460.0,0.00018904,2]
[373476494,1753019461612,-460.0,0.00018904,2]
[373476496,1753019461622,-460.0,0.00018904,2]
[373476498,1753019461631,-460.0,0.00018904,2]
[373476500,1753019461642,-460.0,0.00018904,2]
[373476502,1753019461652,-460.0,0.00018904,2]
[373476504,1753019461661,-1244.56,0.00018904,2]
[373476506,1753019461670,-460.0,0.00018904,2]
[373476508,1753019461680,-1544.89,0.00018904,2]
[373476510,1753019461690,-842.6,0.00018904,2]
[373476512,1753019461699,-460.0,0.00018904,2]
[373476514,1753019461709,-460.0,0.00018904,2]
[373476516,1753019461718,-460.0,0.00018904,2]
[373476518,1753019461728,-460.0,0.00018904,2]
[373476520,1753019461738,-316.70427041,0.00018904,2]
[373476522,1753019461747,-460.0,0.00018904,2]
[373476524,1753019461756,-460.0,0.00018904,2]
[373476526,1753019461766,-460.0,0.00018904,2]
[373476528,1753019461775,-460.0,0.00018904,2]
[373476530,1753019461784,-558.03,0.00018904,2]
[373476532,1753019461794,-243.20824511,0.00018904,2]
[373476534,1753019461803,-1408.91,0.00018904,2]
[373476536,1753019461813,-460.0,0.00018904,2]
[373476538,1753019461822,-460.0,0.00018904,2]
[373476540,1753019461832,-460.0,0.00018904,2]
[373476542,1753019461841,-460.0,0.00018904,2]
[373476544,1753019461850,-460.0,0.00018904,2]
[373476546,1753019461859,-460.0,0.00018904,2]
[373476548,1753019461869,-460.0,0.00018904,2]
[373476550,1753019461878,-831.05,0.00018904,2]
[373476552,1753019461888,-460.0,0.00018904,2]
[373476554,1753019461897,-460.0,0.00018904,2]
[373476556,1753019461907,-579.25,0.00018904,2]
[373476558,1753019461916,-460.0,0.00018904,2]
[373476560,1753019461925,-460.0,0.00018904,2]
[373476562,1753019461935,-2689.75,0.00018904,2]
[373476564,1753019461944,-460.0,0.00018904,2]
[373476566,1753019461953,-460.0,0.00018904,2]
[373476568,1753019461963,-460.0,0.00018904,2]
[373476571,1753019461973,-460.0,0.00018904,2]
[373476573,1753019461982,-460.0,0.00018904,2]
[373476575,1753019461992,-1119.34,0.00018904,2]
[373476577,1753019462001,-460.0,0.00018904,2]
[373476579,1753019462010,-460.0,0.00018904,2]
[373476581,1753019462020,-460.0,0.00018904,2]
[373476583,1753019462029,-460.0,0.00018904,2]
[373476585,1753019462038,-460.0,0.00018904,2]
[373476587,1753019462048,-1334.21,0.00018904,2]
[373476589,1753019462058,-152.06,0.00018904,2]
[373476591,1753019462067,-2930.51,0.00018904,2]
[373476593,1753019462076,-460.0,0.00018904,2]
[373476595,1753019462086,-460.0,0.00018904,2]
[373476597,1753019462095,-460.0,0.00018904,2]
[373476599,1753019462105,-460.0,0.00018904,2]
[373476601,1753019462115,-763.65,0.00018904,2]
[373476603,1753019462124,-2733.92,0.00018904,2]
[373476605,1753019462133,-471.94,0.00018904,2]
[373476607,1753019462143,-2327.68,0.00018904,2]
[373476609,1753019462153,-338.3,0.00018954,2]
[373476611,1753019462163,-211.0,0.0001897,2]
[373476613,1753019462172,-500.0,0.0001897,2]
[373476615,1753019462182,-1253.18,0.0001898,2]
[373476617,1753019462191,-1923.76,0.0001898,2]
[373476619,1753019462200,-460.0,0.0001898,2]
[373476621,1753019462209,-558.83,0.0001898,2]
[373476623,1753019462218,-1175.19,0.0001898,2]
[373476625,1753019462227,-1089.97,0.00018982,2]
[373476627,1753019462236,-168.342639,0.00018983,2]
[373476629,1753019462245,-151.0,0.00018983,2]
[373476631,1753019462254,-500.0,0.00019084,2]
[373476633,1753019462263,-1000.0,0.00019084,2]
[373476635,1753019462273,-501.80415761,0.00019084,2]
[373476637,1753019462282,-500.0,0.00019084,2]
[373476639,1753019462292,-501.11000924,0.00019084,2]
[373476641,1753019462302,-507.96325211,0.00019084,2]
[373476643,1753019462313,-1000.0,0.00019084,2]
[373476645,1753019462322,-1000.0,0.000191,2]
[373476647,1753019462331,-500.0,0.00019102,2]
[373476649,1753019462342,-4775.53488081,0.00019107,2]
[373476651,1753019462351,-500.0,0.00019112,2]
[373476653,1753019462360,-500.0,0.00019112,2]
[373476655,1753019462369,-500.88694253,0.00019112,2]
[373476657,1753019462378,-500.90331733,0.00019112,2]
[373476659,1753019462387,-606.86677499,0.00019112,2]
[373476661,1753019462397,-501.18180365,0.00019112,2]
[373476663,1753019462407,-472.07520401,0.00019148,2]
[373476665,1753019462416,-1011.01879794,0.0001917,2]
[373476667,1753019462425,-500.0,0.00019176,2]
[373476669,1753019462435,-500.0,0.00019176,2]
[373476671,1753019462448,-460.0,0.00019178,2]
[373476673,1753019462457,-561.34,0.00019178,2]
[373476675,1753019462466,-460.0,0.00019178,2]
[373476685,1753019462550,-460.0,0.00019178,2]
[373476687,1753019462560,-460.0,0.00019178,2]
[373476689,1753019462570,-215.76883166,0.00019178,2]
[373476691,1753019462579,-460.0,0.00019178,2]
[373476693,1753019462589,-325.6762371,0.00019178,2]
[373476695,1753019462599,-460.0,0.00019178,2]
[373476697,1753019462608,-151.0,0.00019178,2]
[373476699,1753019462618,-460.0,0.00019178,2]
[373476701,1753019462627,-460.0,0.00019178,2]
[373476703,1753019462636,-460.0,0.00019178,2]
[373476705,1753019462645,-460.0,0.00019178,2]
[373476707,1753019462655,-151.0,0.00019178,2]
[373476709,1753019462664,-460.0,0.00019178,2]
[373476711,1753019462674,-460.0,0.00019178,2]
[373476713,1753019462683,-589.52704109,0.00019178,2]
[373476716,1753019462693,-460.0,0.00019178,2]
[373476718,1753019462703,-460.0,0.00019178,2]
[373476719,1753019462712,-1244.56,0.00019178,2]
[373476722,1753019462722,-460.0,0.00019178,2]
[373476724,1753019462731,-1544.89,0.00019178,2]
[373476726,1753019462740,-842.6,0.00019178,2]
[373476728,1753019462748,-460.0,0.00019178,2]
[373476730,1753019462757,-220.405633,0.00019178,2]
[373476732,1753019462767,-460.0,0.00019178,2]
[373476734,1753019462776,-220.405633,0.00019178,2]
[373476736,1753019462785,-460.0,0.00019178,2]
[373476738,1753019462795,-460.0,0.00019178,2]
[373476740,1753019462804,-460.0,0.00019178,2]
[373476742,1753019462813,-460.0,0.00019178,2]
[373476744,1753019462823,-460.0,0.00019178,2]
[373476746,1753019462832,-460.0,0.00019178,2]
[373476748,1753019462841,-558.03,0.00019178,2]
[373476750,1753019462850,-1408.91,0.00019178,2]
[373476752,1753019462859,-460.0,0.00019178,2]
[373476754,1753019462868,-460.0,0.00019178,2]
[373476756,1753019462877,-460.0,0.00019178,2]
[373476758,1753019462886,-460.0,0.00019178,2]
[373476759,1753019462896,-460.0,0.00019178,2]
[373476762,1753019462905,-831.05,0.00019178,2]
[373476764,1753019462915,-460.0,0.00019178,2]
[373476766,1753019462925,-460.0,0.00019178,2]
[373476768,1753019462934,-579.25,0.00019178,2]
[373476770,1753019462945,-595.56806391,0.00019178,2]
[373476772,1753019462955,-460.0,0.00019178,2]
[373476774,1753019462963,-460.0,0.00019178,2]
[373476776,1753019462972,-2689.75,0.00019178,2]
[373476778,1753019462983,-460.0,0.00019178,2]
[373476780,1753019462992,-199.12593399,0.00019178,2]
[373476782,1753019463002,-460.0,0.00019178,2]
[373476784,1753019463011,-460.0,0.00019178,2]
[373476786,1753019463020,-1119.34,0.00019178,2]
[373476788,1753019463030,-460.0,0.00019178,2]
[373476790,1753019463040,-460.0,0.00019178,2]
[373476792,1753019463049,-460.0,0.00019178,2]
[373476794,1753019463059,-460.0,0.00019178,2]
[373476796,1753019463069,-460.0,0.00019178,2]
[373476798,1753019463079,-1334.21,0.00019178,2]
[373476800,1753019463088,-2930.51,0.00019178,2]
[373476802,1753019463097,-460.0,0.00019178,2]
[373476804,1753019463108,-460.0,0.00019178,2]
[373476806,1753019463117,-460.0,0.00019178,2]
[373476808,1753019463127,-460.0,0.00019178,2]
[373476810,1753019463137,-763.65,0.00019178,2]
[373476812,1753019463148,-2733.92,0.00019178,2]
[373476814,1753019463158,-2327.68,0.00019178,2]
[373476816,1753019463168,-5000.0,0.00019178,2]
[373476818,1753019463178,-158.658992,0.00019178,2]
[373476820,1753019463189,-666.0,0.00019178,2]
[373476822,1753019463199,-500.0,0.00019244,2]
[373476823,1753019463209,-1253.18,0.00019254,2]
[373476825,1753019463219,-1923.76,0.00019254,2]
[373476827,1753019463230,-558.83,0.00019254,2]
[373476829,1753019463240,-1175.19,0.00019254,2]
[373476832,1753019463250,-1089.97,0.00019256,2]
[373476834,1753019463260,-155.991271,0.00019257,2]
[373476835,1753019463270,-151.0,0.00019259,2]
[373476838,1753019463280,-460.0,0.00019263,2]
[373476840,1753019463289,-261.0,0.00019277,2]
[373476842,1753019463299,-151.0,0.00019329,2]
[373476844,1753019463308,-151.0,0.00019329,2]
[373476845,1753019463318,-151.0,0.00019329,2]
[373476847,1753019463329,-358.719151,0.00019329,2]
[373476850,1753019463339,-30257.81230337,0.00019329,2]
[373476851,1753019463349,-151.0,0.00019356,2]
[373476854,1753019463359,-151.0,0.00019356,2]
[373476856,1753019463369,-152.811952,0.00019356,2]
[373476858,1753019463379,-152.811952,0.00019356,2]
[373476860,1753019463390,-151.0,0.00019356,2]
[373476861,1753019463399,-151.847431,0.00019356,2]
[373476863,1753019463409,-151.0,0.00019356,2]
[373476865,1753019463419,-258.110964,0.00019356,2]
[373476867,1753019463429,-337.966889,0.00019356,2]
[373476869,1753019463441,-337.966889,0.00019356,2]
[373476871,1753019463452,-273.508892,0.00019356,2]
[373476873,1753019463461,-245.681376,0.00019356,2]
[373476875,1753019463472,-195.285232,0.00019356,2]
[373476877,1753019463483,-195.285232,0.00019356,2]
[373476879,1753019463492,-687.012168,0.00019356,2]
[373476881,1753019463502,-687.012168,0.00019356,2]
[373476883,1753019463512,-151.0,0.00019356,2]
[373476885,1753019463523,-151.0,0.00019356,2]
[373476887,1753019463532,-155.832917,0.00019356,2]
[373476889,1753019463542,-252.007973,0.00019356,2]
[373476891,1753019463552,-252.007973,0.00019356,2]
[373476893,1753019463563,-208.329113,0.00019356,2]
[373476895,1753019463572,-208.329113,0.00019356,2]
[373476897,1753019463582,-215.0738,0.00019356,2]
[373476899,1753019463591,-25000.0,0.00019356,2]
[373476901,1753019463601,-12016.94445921,0.00019356,2]
[373476903,1753019463611,-151.0,0.00019356,2]
[373476905,1753019463621,-151.0,0.00019356,2]
[373476907,1753019463630,-151.0,0.00019356,2]
[373476909,1753019463640,-151.0,0.00019356,2]
[373476911,1753019463649,-151.0,0.00019356,2]
[373476913,1753019463659,-151.0,0.00019356,2]
[373476915,1753019463670,-278.67023657,0.00019356,2]
[373476917,1753019463680,-151.0,0.00019356,2]
[373476919,1753019463690,-151.0,0.00019356,2]
[373476921,1753019463699,-151.0,0.00019356,2]
[373476923,1753019463708,-4775.53488081,0.00019383,2]
[373476925,1753019463719,-151.0,0.00019384,2]
[373476927,1753019463728,-854.25622652,0.00019413,2]
[373476929,1753019463738,-1000.0,0.00019413,2]
[373476931,1753019463748,-500.0,0.0001942,2]
[373476933,1753019463757,-460.0,0.00019452,2]
[373476935,1753019463767,-460.0,0.00019452,2]
[373476937,1753019463776,-382.2182955,0.00019452,2]
[373476939,1753019463786,-460.0,0.00019452,2]
[373476941,1753019463795,-460.0,0.00019452,2]
[373476943,1753019463805,-460.0,0.00019452,2]
[373476945,1753019463815,-460.0,0.00019452,2]
[373476947,1753019463824,-460.0,0.00019452,2]
[373476949,1753019463834,-460.0,0.00019452,2]
[373476951,1753019463843,-1244.56,0.00019452,2]
[373476953,1753019463853,-460.0,0.00019452,2]
[373476955,1753019463862,-1544.89,0.00019452,2]
[373476957,1753019463871,-842.6,0.00019452,2]
[373476959,1753019463881,-460.0,0.00019452,2]
[373476961,1753019463891,-460.0,0.00019452,2]
[373476963,1753019463901,-460.0,0.00019452,2]
[373476965,1753019463910,-460.0,0.00019452,2]
[373476967,1753019463920,-460.0,0.00019452,2]
[373476976,1753019463991,-460.0,0.00019452,2]
[373476978,1753019464008,-460.0,0.00019452,2]
[373476980,1753019464017,-460.0,0.00019452,2]
[373476982,1753019464026,-558.03,0.00019452,2]
[373476984,1753019464036,-1408.91,0.00019452,2]
[373476986,1753019464046,-460.0,0.00019452,2]
[373476988,1753019464055,-460.0,0.00019452,2]
[373476990,1753019464065,-460.0,0.00019452,2]
[373476992,1753019464074,-460.0,0.00019452,2]
[373476994,1753019464084,-831.05,0.00019452,2]
[373476996,1753019464093,-460.0,0.00019452,2]
[373476998,1753019464102,-460.0,0.00019452,2]
[373477000,1753019464112,-579.25,0.00019452,2]
[373477002,1753019464121,-460.0,0.00019452,2]
[373477004,1753019464131,-2689.75,0.00019452,2]
[373477006,1753019464141,-460.0,0.00019452,2]
[373477008,1753019464151,-460.0,0.00019452,2]
[373477010,1753019464160,-282.71,0.00019452,2]
[373477012,1753019464170,-1119.34,0.00019452,2]
[373477014,1753019464180,-460.0,0.00019452,2]
[373477016,1753019464190,-460.0,0.00019452,2]
[373477018,1753019464200,-460.0,0.00019452,2]
[373477020,1753019464210,-460.0,0.00019452,2]
[373477022,1753019464219,-1334.21,0.00019452,2]
[373477024,1753019464229,-2930.51,0.00019452,2]
[373477026,1753019464239,-460.0,0.00019452,2]
[373477028,1753019464247,-460.0,0.00019452,2]
[373477030,1753019464257,-460.0,0.00019452,2]
[373477032,1753019464266,-460.0,0.00019452,2]
[373477034,1753019464276,-763.65,0.00019452,2]
[373477036,1753019464285,-2733.92,0.00019452,2]
[373477038,1753019464294,-2327.68,0.00019452,2]
[373477040,1753019464304,-500.0,0.00019518,2]
[373477042,1753019464313,-1253.18,0.00019528,2]
[373477044,1753019464323,-1923.76,0.00019528,2]
[373477046,1753019464332,-558.83,0.00019528,2]
[373477048,1753019464342,-1175.19,0.00019528,2]
[373477050,1753019464352,-1089.97,0.0001953,2]
[373477053,1753019464361,-587.0,0.00019603,2]
[373477055,1753019464370,-153.0,0.00019616,2]
[373477057,1753019464380,-153.0,0.00019616,2]
[373477058,1753019464391,-153.0,0.00019616,2]
[373477061,1753019464401,-153.0,0.00019616,2]
[373477063,1753019464410,-153.0,0.00019616,2]
[373477065,1753019464419,-153.0,0.00019616,2]
[373477067,1753019464429,-153.0,0.00019616,2]
[373477069,1753019464439,-153.0,0.00019616,2]
[373477070,1753019464451,-151.0,0.00019631,2]
[373477072,1753019464460,-517.94766044,0.00019632,2]
[373477074,1753019464470,-1389.20231297,0.00019632,2]
[373477076,1753019464480,-386.63,0.00019656,2]
[373477079,1753019464490,-4775.53488081,0.00019659,2]
[373477081,1753019464500,-300.35007006,0.00019724,2]
[373477083,1753019464509,-500.0,0.00019724,2]
[373477085,1753019464520,-460.0,0.00019726,2]
[373477087,1753019464530,-460.0,0.00019726,2]
[373477089,1753019464540,-460.0,0.00019726,2]
[373477091,1753019464550,-460.0,0.00019726,2]
[373477093,1753019464559,-460.0,0.00019726,2]
[373477095,1753019464568,-460.0,0.00019726,2]
[373477097,1753019464578,-460.0,0.00019726,2]
[373477099,1753019464588,-460.0,0.00019726,2]
[373477101,1753019464598,-1244.56,0.00019726,2]
[373477103,1753019464607,-460.0,0.00019726,2]
[373477105,1753019464616,-1544.89,0.00019726,2]
[373477107,1753019464625,-842.6,0.00019726,2]
[373477108,1753019464634,-460.0,0.00019726,2]
[373477110,1753019464646,-460.0,0.00019726,2]
[373477113,1753019464656,-460.0,0.00019726,2]
[373477115,1753019464665,-460.0,0.00019726,2]
[373477117,1753019464675,-460.0,0.00019726,2]
[373477119,1753019464684,-460.0,0.00019726,2]
[373477121,1753019464694,-460.0,0.00019726,2]
[373477123,1753019464703,-460.0,0.00019726,2]
[373477125,1753019464713,-558.03,0.00019726,2]
[373477127,1753019464723,-1408.91,0.00019726,2]
[373477129,1753019464732,-460.0,0.00019726,2]
[373477131,1753019464741,-460.0,0.00019726,2]
[373477132,1753019464750,-460.0,0.00019726,2]
[373477134,1753019464760,-460.0,0.00019726,2]
[373477137,1753019464770,-831.05,0.00019726,2]
[373477138,1753019464779,-460.0,0.00019726,2]
[373477141,1753019464788,-460.0,0.00019726,2]
[373477143,1753019464798,-579.25,0.00019726,2]
[373477145,1753019464807,-460.0,0.00019726,2]
[373477147,1753019464816,-2689.75,0.00019726,2]
[373477149,1753019464826,-460.0,0.00019726,2]
[373477151,1753019464835,-543.51,0.00019726,2]
[373477153,1753019464845,-1119.34,0.00019726,2]
[373477155,1753019464854,-460.0,0.00019726,2]
[373477157,1753019464864,-460.0,0.00019726,2]
[373477159,1753019464874,-460.0,0.00019726,2]
[373477161,1753019464883,-460.0,0.00019726,2]
[373477163,1753019464893,-1334.21,0.00019726,2]
[373477165,1753019464902,-1190.1715234,0.00019726,2]
[373477222,1753019465510,-460.0,0.00016712,2]
[373477223,1753019465521,-151.0,0.00019356,2]
[373477224,1753019465530,-151.0,0.00019356,2]
[373477225,1753019465539,-151.0,0.00019356,2]
[373477226,1753019465548,-1740.3384766,0.00019726,2]
[373477227,1753019465558,-460.0,0.00019726,2]
[373477228,1753019465567,-460.0,0.00019726,2]
[373477230,1753019465577,-460.0,0.00019726,2]
[373477232,1753019465586,-460.0,0.00019726,2]
[373477234,1753019465595,-763.65,0.00019726,2]
[373477236,1753019465604,-2733.92,0.00019726,2]
[373477238,1753019465614,-2327.68,0.00019726,2]
[373477240,1753019465624,-150.64208,0.0001976,3]
[373477242,1753019465633,-156.684398,0.00019791,3]
[373477244,1753019465644,-199.825654,0.00019791,3]
[373477246,1753019465653,-150.64208,0.00019791,3]
[373477249,1753019465664,-500.0,0.00019792,2]
[373477251,1753019465674,-151.0,0.00019793,2]
[373477253,1753019465683,-1253.18,0.00019802,2]
[373477255,1753019465692,-1923.76,0.00019802,2]
[373477256,1753019465701,-558.83,0.00019802,2]
[373477258,1753019465711,-1175.19,0.00019802,2]
[373477261,1753019465721,-1089.97,0.00019804,2]
[373477262,1753019465731,-151.0,0.00019804,2]
[373477265,1753019465741,-236.682059,0.00019804,2]
[373477267,1753019465750,-560.0,0.00019811,2]
[373477268,1753019465760,-2341.60809915,0.00019835,2]
[373477270,1753019465771,-220.405633,0.00019904,2]
[373477273,1753019465782,-220.405633,0.00019904,2]
[373477275,1753019465791,-8180.76361645,0.00019904,2]
[373477328,1753019466298,5000.0,0.000164,2]
[373478526,1753019478784,4582.50185679,0.000164,2]
[373478531,1753019478818,417.49814321,0.000164,2]
[373479158,1753019494144,5000.0,0.000164,2]
[373479159,1753019500081,1007.05795241,0.00016338,2]
[373479160,1753019505106,278.2260293,0.0001577,2]
[373479161,1753019510029,3297.21787508,0.000164,2]
[373479162,1753019510078,1702.78212492,0.000164,2]
[373482420,1753019548361,8297.21787508,0.00016338,2]
[373482424,1753019548396,10000.0,0.00016338,2]
[373482429,1753019548431,10000.0,0.00016338,2]
[373482433,1753019548468,10000.0,0.00016338,2]
[373482437,1753019548495,22995.65246618,0.00016338,2]
[373482441,1753019548522,30000.0,0.00016338,2]
[373482445,1753019548548,30000.0,0.00016338,2]
[373482448,1753019548573,30000.0,0.00016338,2]
[373482452,1753019548598,30000.0,0.00016338,2]
[373482470,1753019548764,30000.0,0.00016338,2]
[373482474,1753019548789,30000.0,0.00016338,2]
[373482478,1753019548813,30000.0,0.00016338,2]
[373482481,1753019548838,30000.0,0.00016338,2]
[373482485,1753019548862,30000.0,0.00016338,2]
[373482488,1753019548885,30000.0,0.00016338,2]
[373482492,1753019548909,8707.12965874,0.00016338,2]
[373484259,1753019569608,5000.0,0.0001634,2]
[373484260,1753019585364,5000.0,0.0001634,2]
[373484266,1753019596391,10000.0,0.0001564,2]
[373484267,1753019596416,11292.87034126,0.0001564,2]
[373484268,1753019596439,3607.12965874,0.0001564,2]
[373484269,1753019596795,1115.64042573,0.00016338,2]
[373484270,1753019600984,5000.0,0.0001634,2]
[373484273,1753019616798,5000.0,0.000164,2]
[373484274,1753019632202,5000.0,0.000164,2]
[373484275,1753019643933,150.64208,0.0002208,30]
[373484276,1753019647803,5000.0,0.000164,2]
[373484277,1753019665855,5000.0,0.000164,2]
[373484278,1753019666076,500.0,0.00016337,2]
[373484279,1753019666122,413.49523507,0.00016337,2]
[373484280,1753019679586,1594.88299902,0.00015945,2]
[373484281,1753019679672,360.893306,0.00015998,2]
[373484282,1753019682310,202.63823809,0.00016338,2]
[373484283,1753019682676,1928.09022182,0.000164,2]
[373484284,1753019682708,3071.90977818,0.000164,2]
[373484285,1753019697939,5000.0,0.000164,2]
[373484286,1753019702380,622.66589929,0.00016337,2]
[373484287,1753019704482,150.64208,0.0002254,30]
[373484288,1753019713866,1305.42432253,0.000164,2]
[373484289,1753019713900,3694.57567747,0.000164,2]
[373484290,1753019715624,6305.42432253,0.0001564,2]
[373484291,1753019715686,3707.24629367,0.0001564,2]
[373484293,1753019729517,5000.0,0.0001634,2]
[373484296,1753019744626,795.4433422,0.00015616,2]
[373484297,1753019744828,5000.0,0.0001634,2]
[373484298,1753019756843,160.1391964,0.0001574,2]
[373484299,1753019760135,5000.0,0.0001634,2]
[373484302,1753019775606,5000.0,0.0001634,2]
[373484305,1753019792162,614.40108326,0.0001634,2]
[373484306,1753019792210,4385.59891674,0.0001634,2]
[373484307,1753019797742,202.63823808,0.00016338,2]
[373484309,1753019808782,5000.0,0.0001634,2]
[373484313,1753019821776,1032.829424,0.0001559,2]
[373484314,1753019824171,239.4846879,0.0001634,2]
[373484315,1753019824225,4760.5153121,0.0001634,2]
[373484317,1753019835973,14618.41810908,0.00016338,2]
[373484318,1753019836023,30000.0,0.00016338,2]
[373484319,1753019836072,10078.15884529,0.00016338,2]
[373484321,1753019839758,5000.0,0.0001634,2]
[373484324,1753019855201,5000.0,0.0001634,2]
[373484327,1753019871205,5000.0,0.000164,2]
[373484331,1753019887250,5000.0,0.000164,2]
[373484333,1753019892286,1062.26683134,0.00016338,2]
[373484336,1753019903004,3937.73316866,0.000164,2]
[373484337,1753019903040,1062.26683134,0.000164,2]
[373484338,1753019903241,202.63823808,0.00016338,2]
[373484340,1753019912890,4214.19609276,0.000164,2]
[373484342,1753019921582,4520.89883782,0.000164,2]
[373484343,1753019921622,479.10116218,0.000164,2]
[373484346,1753019938191,5000.0,0.000164,2]
[373484349,1753019952078,1970.92560562,0.00016338,2]
[373484350,1753019954928,2549.9732322,0.000164,2]
[373484351,1753019954962,2450.0267678,0.000164,2]
[373484353,1753019970873,5000.0,0.000164,2]
[373484355,1753019981782,1429.20377856,0.00015945,2]
[373484356,1753019984665,341.93157,0.00015945,2]
[373484357,1753019986278,778.83788364,0.000164,2]
[373484358,1753019986315,4221.16211636,0.000164,2]
[373484360,1753020001631,5000.0,0.000164,2]
[373484361,1753020005226,778.83788364,0.00016338,2]
[373484362,1753020005258,953.63322515,0.00016338,2]
[373484364,1753020018872,5000.0,0.000164,2]
[373484366,1753020034172,4046.36677485,0.000164,2]
[373484367,1753020034207,953.63322515,0.000164,2]
[373484368,1753020049992,5000.0,0.000164,2]
[373484369,1753020066869,4046.36677485,0.000164,2]
[373484370,1753020066904,953.63322515,0.000164,2]
[373484371,1753020082338,5000.0,0.000164,2]
[373484372,1753020098728,4046.36677485,0.000164,2]
[373484373,1753020098771,953.63322515,0.000164,2]
[373484374,1753020107944,929.48347744,0.00016328,2]
[373484375,1753020114450,5000.0,0.000164,2]
[373484376,1753020129975,3116.88329741,0.000164,2]
[373484377,1753020146532,1067.6885268,0.00015436,2]
[373484378,1753020158323,207.6516708,0.00015433,2]
[373484380,1753020222411,199.4704144,0.00015433,2]
[373484381,1753020229117,1263.1374514,0.00015557,2]
[373484382,1753020286677,672.294249,0.00015935,2]
[373484383,1753020287093,384.60251464,0.00015935,2]
[373484384,1753020321454,2480.49537056,0.000164,2]
[373484385,1753020321509,2519.50462944,0.000164,2]
[373484386,1753020336858,2480.49537056,0.000164,2]
[373484387,1753020336913,2519.50462944,0.000164,2]
[373484388,1753020346487,1385.97688704,0.00016338,2]
[373484389,1753020350046,-714.18,0.00016428,3]
[373484390,1753020350070,-357.09,0.00016428,3]
[373484391,1753020350092,-178.55,0.00016428,3]
[373484392,1753020350113,-535.66,0.00016428,3]
[373484393,1753020350135,-151.0,0.00016428,2]
[373484394,1753020350158,-151.0,0.00016428,2]
[373484395,1753020350180,-151.0,0.00016428,2]
[373484396,1753020350202,-215.0738,0.00016428,2]
[373484397,1753020350224,-151.0,0.00016428,2]
[373484398,1753020350247,-151.0,0.00016428,2]
[373484399,1753020350269,-151.0,0.00016428,2]
[373484400,1753020350290,-151.0,0.00016428,2]
[373484401,1753020350312,-151.0,0.00016428,2]